bitfinex/quotes_SOLUSD_20241118
["timestamp","ask_amount","ask_price","bid_price","bid_amount"]
[1731952136938,20.37128792,237.82,237.74,4.2062]
[1731952137657,20.37128792,237.84,237.75,20.37128792]
[1731952137946,20.37128792,237.86,237.77,20.37128792]
[1731952138752,20.37128792,237.86,237.78,4.2055]
[1731952138932,20.37128792,237.88,237.79,20.37128792]
[1731952139250,20.37128792,237.9,237.81,20.37128792]
[1731952140135,20.37128792,237.9,237.83,20.37128792]
[1731952140340,0.5,238.03,237.85,20.37128792]
[1731952140341,20.37128792,237.92,237.85,20.37128792]
[1731952140644,20.37128792,237.9,237.83,20.37128792]
[1731952140845,20.37128792,237.88,237.82,4.2048]
[1731952141034,20.37128792,237.86,237.82,4.2048]
[1731952141663,20.37128792,237.88,237.82,4.2048]
[1731952142461,20.37128792,237.9,237.82,24.57608792]
[1731952143857,70.0,238.01,237.82,24.57608792]
[1731952143858,20.37128792,237.92,237.84,20.37128792]
[1731952144757,4.2016,238.0,237.82,4.2048]
[1731952144758,20.37128792,237.95,237.87,20.37128792]
[1731952144957,4.2016,238.0,237.89,20.37128792]
[1731952144958,20.37128792,237.97,237.89,20.37128792]
[1731952145337,20.37128792,237.98,237.9,20.37128792]
[1731952145540,20.37128792,238.0,237.93,20.37128792]
[1731952145761,20.37128792,238.0,237.94,4.2027]
[1731952145937,20.37128792,237.97,237.91,4.2031]
[1731952146146,20.37128792,237.95,237.91,4.2031]
[1731952146339,20.37128792,237.96,237.91,4.2031]
[1731952147054,20.37128792,238.0,237.92,20.37128792]
[1731952147848,20.37128792,238.0,237.93,20.37128792]
[1731952148047,20.37128792,238.01,237.93,20.37128792]
[1731952148249,12.71702136,238.0,237.92,12.71702136]
[1731952148539,12.71702136,238.04,237.96,12.71702136]
[1731952149352,12.71702136,238.02,237.96,17.2843]
[1731952149544,12.71702136,238.08,237.96,17.2843]
[1731952149739,12.71702136,238.04,237.96,17.2843]
[1731952149947,12.71702136,238.04,237.97,4.2022]
[1731952150965,12.71702136,237.98,237.92,4.203]
[1731952155449,12.71702136,238.0,237.92,16.92002136]
[1731952155665,70.0,238.12,237.94,12.71702136]
[1731952155969,12.71702136,238.04,237.94,12.71702136]
[1731952156171,12.71702136,238.04,237.97,12.71702136]
[1731952156362,12.71702136,238.06,237.97,12.71702136]
[1731952156669,12.71702136,238.06,237.98,4.202]
[1731952157471,12.71702136,238.02,237.98,4.202]
[1731952158183,12.71702136,238.04,237.98,4.202]
[1731952158673,12.71702136,238.04,237.95,12.71702136]
[1731952158897,12.71702136,238.0,237.92,4.203]
[1731952159048,12.71702136,237.94,237.91,18.0103]
[1731952159448,12.71702136,237.98,237.91,22.2134]
[1731952159680,12.71702136,238.0,237.92,12.71702136]
[1731952160870,12.71702136,238.0,237.93,4.2029]
[1731952162546,12.71702136,238.0,237.91,18.0103]
[1731952162547,12.71702136,237.96,237.91,22.2134]
[1731952163283,12.71702136,238.02,237.94,12.71702136]
[1731952163451,12.71702136,238.04,237.94,12.71702136]
[1731952163760,12.71702136,238.04,237.96,12.71702136]
[1731952164177,12.71702136,238.06,237.98,12.71702136]
[1731952164481,12.71702136,238.06,237.99,6.5861]
[1731952165362,12.71702136,238.06,238.0,4.2016]
[1731952165565,12.71702136,238.04,238.0,4.2016]
[1731952165947,84.6977,238.13,237.93,10.789]
[1731952166281,12.71702136,238.08,238.0,12.71702136]
[1731952166576,12.71702136,238.1,238.02,12.71702136]
[1731952167172,12.71702136,238.1,238.03,4.2011]
[1731952168452,12.71702136,238.12,238.03,4.2011]
[1731952169483,25.2829,238.21,238.06,12.71702136]
[1731952169775,12.71702136,238.14,238.06,12.71702136]
[1731952170880,12.71702136,238.14,238.07,20.8496]
[1731952171257,12.71702136,238.16,238.08,12.71702136]
[1731952173188,12.71702136,238.16,238.07,16.6492]
[1731952173480,12.71702136,238.12,238.07,16.6492]
[1731952173659,12.71702136,238.12,238.07,20.8496]
[1731952173859,12.71702136,238.14,238.07,20.8496]
[1731952174175,70.0,238.23,238.07,20.8496]
[1731952174176,70.0,238.23,238.12,12.71702136]
[1731952174354,12.71702136,238.18,238.1,12.71702136]
[1731952175068,16.91552136,238.18,238.1,4.1997]
[1731952175266,12.71702136,238.16,238.08,4.2002]
[1731952175465,12.71702136,238.16,238.09,12.71702136]
[1731952176678,12.71702136,238.14,238.08,4.2002]
[1731952176854,12.71702136,238.12,238.08,4.2002]
[1731952177058,12.71702136,238.12,238.07,16.6492]
[1731952177371,12.71702136,238.08,238.0,29.99272136]
[1731952177585,12.71702136,238.08,238.01,4.2015]
[1731952177764,12.71702136,238.1,238.02,12.71702136]
[1731952178882,12.71702136,238.04,238.0,17.2757]
[1731952179465,12.71702136,238.06,238.0,17.2757]
[1731952179765,12.71702136,238.06,238.0,21.4773]
[1731952179961,12.71702136,238.08,238.0,21.4773]
[1731952180169,12.71702136,238.1,238.0,34.19432136]
[1731952180996,12.71702136,238.1,238.02,12.71702136]
[1731952181489,12.71702136,238.1,238.03,4.2011]
[1731952182485,16.91692136,238.1,238.03,4.2011]
[1731952182969,12.71702136,238.1,238.03,4.2011]
[1731952184560,12.71702136,238.12,238.03,4.2011]
[1731952184765,12.71702136,238.12,238.04,12.71702136]
[1731952184970,12.71702136,238.14,238.06,12.71702136]
[1731952185686,16.91662136,238.12,238.03,16.91812136]
[1731952187607,12.71702136,238.1,238.01,12.71702136]
[1731952187769,12.71702136,238.06,238.0,21.4773]
[1731952187965,12.71702136,238.04,237.95,12.71702136]
[1731952188276,12.71702136,238.0,237.94,23.8273]
[1731952189381,12.71702136,238.0,237.95,4.2025]
[1731952190493,12.71702136,238.0,237.94,28.03]
[1731952191175,12.23505816,238.0,237.94,28.03]
[1731952191982,12.71702136,238.02,237.94,28.03]
[1731952192177,4.17,237.98,237.94,28.03]
[1731952193291,4.17,237.98,237.95,12.71702136]
[1731952193494,4.17,237.98,237.96,4.2023]
[1731952196291,4.17,237.98,237.97,12.71702136]
[1731952196503,4.065,237.98,237.97,12.71702136]
[1731952198000,4.065,237.98,237.95,4.2025]
[1731952199772,4.065,237.98,237.94,28.03]
[1731952200803,4.065,237.98,237.95,12.71702136]
[1731952201092,4.065,237.98,237.94,28.03]
[1731952201403,4.065,237.98,237.95,12.71702136]
[1731952201696,4.065,237.98,237.97,12.71702136]
[1731952203077,12.71702136,238.14,237.98,23.902374]
[1731952203392,12.71702136,238.14,238.05,12.71702136]
[1731952203798,12.71702136,238.16,238.07,12.71702136]
[1731952203986,12.71702136,238.18,238.11,12.71702136]
[1731952204578,12.71702136,238.2,238.12,12.71702136]
[1731952204898,12.71702136,238.22,238.14,12.71702136]
[1731952205278,12.71702136,238.2,238.13,12.71702136]
[1731952205806,12.71702136,238.18,238.11,12.71702136]
[1731952206093,12.71702136,238.18,238.09,12.71702136]
[1731952206598,12.71702136,238.18,238.07,4.2004]
[1731952206793,70.5,238.27,238.07,4.2004]
[1731952206794,12.71702136,238.16,238.07,16.91742136]
[1731952207202,4.29067462,238.26,238.09,12.71702136]
[1731952207501,12.71702136,238.18,238.09,12.71702136]
[1731952207806,12.71702136,238.18,238.11,12.71702136]
[1731952208173,12.68681136,238.18,238.12,4.1995]
[1731952208976,12.71702136,238.14,238.08,4.2001]
[1731952209781,16.91522136,238.2,238.08,4.2001]
[1731952209782,12.71702136,238.16,238.08,4.2001]
[1731952210598,12.71702136,238.18,238.09,12.71702136]
[1731952210797,12.71702136,238.16,238.09,12.71702136]
[1731952211106,12.71702136,238.16,238.08,4.2001]
[1731952211285,12.71702136,238.14,238.08,4.2001]
[1731952211803,12.71702136,238.16,238.08,4.2001]
[1731952212101,12.71702136,238.14,238.08,4.2001]
[1731952212303,12.71702136,238.1,238.03,12.71702136]
[1731952212494,12.71702136,238.1,238.04,4.2009]
[1731952212992,12.71702136,238.12,238.04,4.2009]
[1731952213291,12.71702136,238.1,238.01,17.051]
[1731952213495,12.71702136,238.08,238.02,4.2011]
[1731952213799,12.71702136,238.08,238.0,11.09]
[1731952214007,70.0,238.13,237.96,29.76802136]
[1731952214008,12.71702136,238.06,237.96,29.76802136]
[1731952215209,16.91762136,238.06,237.98,4.2019]
[1731952216100,12.71702136,238.04,237.96,4.2022]
[1731952216306,12.71702136,237.98,237.94,4.2026]
[1731952216603,12.71702136,238.0,237.94,4.2026]
[1731952217115,12.71702136,238.02,237.94,4.2026]
[1731952217282,4.2011,238.04,237.94,4.2026]
[1731952217486,12.71702136,237.98,237.81,0.5]
[1731952217678,12.71702136,237.98,237.89,12.71702136]
[1731952218286,24.41503247,238.09,237.95,12.71702136]
[1731952218481,12.71702136,238.04,237.95,12.71702136]
[1731952219291,25.43404272,237.96,237.84,23.1675]
[1731952219497,25.43404272,237.96,237.77,0.5]
[1731952219498,12.71702136,237.89,237.85,4.2043]
[1731952219697,12.71702136,237.89,237.81,4.205]
[1731952220186,5.75637042,237.96,237.84,12.71702136]
[1731952220505,12.71702136,237.94,237.84,12.71702136]
[1731952221217,12.71702136,237.96,237.89,4.2036]
[1731952222091,4.29497462,238.02,237.9,23.2346]
[1731952222288,20.35399706,237.97,237.9,23.2346]
[1731952222697,20.35399706,237.97,237.9,43.58859706]
[1731952222897,20.35399706,238.01,237.92,20.35399706]
[1731952223400,20.35399706,238.01,237.93,4.2029]
[1731952223791,20.35399706,238.03,237.94,20.35399706]
[1731952223994,20.35399706,238.03,237.96,20.35399706]
[1731952224385,20.35399706,238.05,237.96,20.35399706]
[1731952224809,20.35399706,238.05,237.98,20.35399706]
[1731952224990,6.56201047,238.31,238.12,22.0936]
[1731952225196,6.55868334,238.51,238.45,0.5]
[1731952225513,13.11847056,238.62,238.61,0.5]
[1731952225708,13.11847056,238.68,238.62,0.5]
[1731952226014,52.22391291,238.82,238.55,0.09367462]
[1731952226015,7.35243378,238.89,238.73,0.5]
[1731952226309,1.675786,239.02,238.88,32.79792888]
[1731952226618,6.2416,239.11,238.83,0.5]
[1731952226619,4.1824,239.1,238.96,32.79792888]
[1731952226799,32.79792888,239.08,238.96,32.79792888]
[1731952227116,70.0,239.16,239.02,32.79792888]
[1731952227321,70.0,239.16,239.07,32.79792888]
[1731952227493,32.79792888,239.19,239.06,32.79792888]
[1731952227693,32.79792888,239.19,238.99,4.1842]
[1731952227694,36.97802888,239.23,239.1,32.79792888]
[1731952228015,32.79792888,239.19,239.08,0.5]
[1731952228212,4.566107,239.23,239.08,0.5]
[1731952228401,32.79792888,239.17,239.08,0.5]
[1731952228603,4.566107,239.23,239.08,0.5]
[1731952228604,32.79792888,239.19,239.08,0.5]
[1731952228903,32.79792888,239.19,239.12,0.5]
[1731952229312,32.79792888,239.21,239.13,4.1818]
[1731952229700,32.79792888,239.17,239.13,4.1818]
[1731952230022,32.79792888,239.19,239.13,4.1818]
[1731952230196,32.79792888,239.2,239.13,4.6818]
[1731952230520,32.79792888,239.22,239.17,0.5]
[1731952230815,32.79792888,239.18,239.13,4.1818]
[1731952231116,32.79792888,239.14,239.12,0.5]
[1731952231295,32.79792888,239.16,239.12,0.5]
[1731952231490,70.0,239.26,239.12,0.5]
[1731952231798,32.79792888,239.17,239.16,0.5]
[1731952232104,32.79792888,239.17,239.13,0.5]
[1731952232304,0.09367462,239.25,239.13,0.5]
[1731952232627,32.79792888,239.15,239.13,0.5]
[1731952232915,32.79792888,239.15,239.11,0.5]
[1731952233215,32.79792888,239.13,239.11,4.6821]
[1731952233402,32.79792888,239.15,239.11,4.6821]
[1731952233598,0.12549,239.14,239.11,4.6821]
[1731952233921,0.25098,239.12,239.06,0.5]
[1731952234120,32.79792888,239.09,239.06,4.183]
[1731952234423,32.79792888,239.07,238.99,0.5]
[1731952234712,32.79792888,239.05,238.99,0.5]
[1731952234929,32.79792888,239.07,239.01,0.5]
[1731952235225,32.79792888,239.09,239.01,0.5]
[1731952235403,32.79792888,239.09,239.01,33.29792888]
[1731952235600,32.79792888,239.09,239.01,0.5]
[1731952235801,32.79792888,239.07,239.01,0.5]
[1731952236207,32.79792888,239.03,238.97,4.1845]
[1731952236517,0.25098,239.0,238.94,0.5]
[1731952236700,70.0,239.25,239.08,0.5]
[1731952237018,32.79792888,239.17,239.09,0.5]
[1731952237313,32.79792888,239.19,239.1,32.79792888]
[1731952237518,32.79792888,239.13,239.06,0.5]
[1731952237907,32.79792888,239.17,239.08,32.79792888]
[1731952238105,32.79792888,239.17,239.1,32.79792888]
[1731952238322,32.79792888,239.19,239.1,32.79792888]
[1731952238508,32.79792888,239.13,239.07,0.5]
[1731952238826,32.79792888,239.09,239.03,0.5]
[1731952239494,0.25098,239.08,239.05,4.183]
[1731952239898,0.12549,239.08,239.05,4.183]
[1731952240112,32.79792888,239.09,239.05,4.183]
[1731952240429,0.12549,239.06,238.98,33.29792888]
[1731952240608,32.79792888,239.04,238.99,4.1842]
[1731952241301,32.79792888,239.04,239.0,0.5]
[1731952241502,32.79792888,239.04,238.98,0.5]
[1731952241893,32.79792888,239.02,238.98,0.5]
[1731952242601,32.79792888,239.02,238.99,4.1842]
[1731952243104,32.79792888,239.0,238.96,0.5]
[1731952243702,32.79792888,239.02,238.98,0.5]
[1731952244217,32.79792888,239.04,239.0,0.5]
[1731952244604,32.79792888,239.04,239.01,4.1839]
[1731952245813,32.79792888,239.04,238.87,0.5]
[1731952245814,0.7217872,239.35,239.09,0.5]
[1731952246118,0.7217872,239.35,239.04,4.1834]
[1731952246119,32.79792888,239.18,239.1,0.5]
[1731952246322,70.0,239.24,239.13,0.5]
[1731952246895,32.79792888,239.19,239.13,0.5]
[1731952247098,32.79792888,239.19,239.14,4.1816]
[1731952247401,32.79792888,239.17,239.14,4.1816]
[1731952247606,32.79792888,239.15,239.11,4.1821]
[1731952247813,0.12549,239.14,239.11,4.1821]
[1731952249032,0.12549,239.12,239.08,4.1827]
[1731952249401,32.92341888,239.12,239.08,4.1827]
[1731952250204,32.79792888,239.14,239.08,4.1827]
[1731952250931,0.12549,239.18,239.09,0.5]
[1731952251099,32.79792888,239.18,239.11,0.5]
[1731952252026,32.79792888,239.16,239.11,0.5]
[1731952252900,32.79792888,239.16,239.12,4.182]
[1731952253508,0.25098,239.18,239.12,4.182]
[1731952253822,32.79792888,239.17,239.12,4.182]
[1731952254522,32.79792888,239.17,239.13,0.5]
[1731952254711,32.79792888,239.17,239.14,4.1816]
[1731952254916,0.12549,239.18,239.14,4.1816]
[1731952255116,0.25098,239.14,239.08,0.5]
[1731952255315,32.79792888,239.12,239.09,4.1825]
[1731952255744,32.79792888,239.14,239.09,4.1825]
[1731952255903,32.79792888,239.18,239.13,0.5]
[1731952256924,32.79792888,239.18,239.14,4.1816]
[1731952257809,32.79792888,239.16,239.14,4.1816]
[1731952258606,8.44054129,239.33,239.17,0.5]
[1731952258831,8.44054129,239.33,239.14,36.97952888]
[1731952258832,32.79792888,239.24,239.18,24.276884]
[1731952259002,32.79792888,239.2,239.16,0.5]
[1731952259206,32.79792888,239.2,239.14,4.1816]
[1731952259207,32.79792888,239.2,239.14,4.6816]
[1731952259628,32.79792888,239.16,239.14,4.1816]
[1731952260137,32.79792888,239.18,239.14,4.6816]
[1731952260304,0.5,239.29,239.16,4.1813]
[1731952260510,32.79792888,239.24,239.17,0.5]
[1731952260830,32.79792888,239.24,239.16,4.6813]
[1731952261026,32.79792888,239.22,239.18,0.5]
[1731952261226,32.79792888,239.22,239.16,4.6813]
[1731952261426,32.79792888,239.2,239.16,0.5]
[1731952261639,32.79792888,239.2,239.14,0.5]
[1731952261843,32.79792888,239.23,239.14,0.5]
[1731952262016,32.79792888,239.23,239.14,24.276884]
[1731952262215,32.79792888,239.23,239.13,33.29792888]
[1731952262535,0.25098,239.22,239.15,0.5]
[1731952262832,0.25098,239.22,239.13,33.29792888]
[1731952263039,0.25098,239.22,239.15,0.5]
[1731952263241,0.12549,239.22,239.15,33.29792888]
[1731952263540,0.25098,239.24,239.15,33.29792888]
[1731952263836,0.25098,239.22,239.15,33.29792888]
[1731952264042,32.79792888,239.21,239.16,4.1813]
[1731952264712,0.25098,239.2,239.16,4.1813]
[1731952265610,32.79792888,239.21,239.1,0.5]
[1731952265611,0.25098,239.18,239.1,0.5]
[1731952266037,0.25098,239.18,239.12,4.6818]
[1731952266207,32.79792888,239.21,239.14,0.5]
[1731952266536,0.25098,239.22,239.14,0.5]
[1731952267511,0.25098,239.2,239.12,4.6818]
[1731952267732,0.25098,239.18,239.12,4.1818]
[1731952267925,0.25098,239.18,239.09,33.29792888]
[1731952268323,0.25098,239.16,239.09,33.29792888]
[1731952269523,0.25098,239.18,239.13,0.5]
[1731952269727,0.25098,239.2,239.13,33.29792888]
[1731952270118,0.25098,239.2,239.14,4.1816]
[1731952270327,0.25098,239.22,239.14,4.1816]
[1731952270512,0.25098,239.2,239.14,4.1816]
[1731952271247,32.79792888,239.19,239.14,4.1816]
[1731952271545,0.25098,239.2,239.14,4.1816]
[1731952272331,0.12549,239.2,239.15,0.5]
[1731952272917,32.79792888,239.23,239.17,0.5]
[1731952273327,32.79792888,239.23,239.18,4.1809]
[1731952274219,20.14069556,239.23,239.18,4.1809]
[1731952274630,0.25098,239.24,239.18,4.1809]
[1731952275031,2.1371791,239.35,239.25,0.5]
[1731952275341,2.1371791,239.35,239.18,4.1809]
[1731952275342,0.2217872,239.35,239.34,20.64069556]
[1731952275644,8.72e-05,239.35,239.34,44.41757956]
[1731952276219,8.72e-05,239.35,239.34,24.81879556]
[1731952276429,8.72e-05,239.35,239.34,4.1781]
[1731952277534,8.72e-05,239.35,239.26,0.5]
[1731952277718,20.14069556,239.34,239.29,0.5]
[1731952277919,20.14069556,239.32,239.27,0.5]
[1731952278223,8.72e-05,239.35,239.29,0.5]
[1731952278530,0.12549,239.34,239.29,0.5]
[1731952278722,0.12549,239.34,239.27,4.6793]
[1731952279234,0.12549,239.34,239.29,0.5]
[1731952279419,0.12549,239.37,239.29,33.18830381]
[1731952279628,158.4,239.42,239.32,33.18830381]
[1731952279629,32.68830381,239.42,239.32,33.18830381]
[1731952279948,32.68830381,239.4,239.3,33.18830381]
[1731952280121,32.68830381,239.4,239.32,0.5]
[1731952280315,32.68830381,239.4,239.33,4.1783]
[1731952280735,0.12549,239.39,239.33,4.1783]
[1731952281047,32.68830381,239.42,239.34,0.5]
[1731952282125,0.12549,239.41,239.36,0.5]
[1731952282339,32.68830381,239.46,239.38,0.5]
[1731952283354,32.68830381,239.5,239.41,0.5]
[1731952283639,32.68830381,239.52,239.45,0.5]
[1731952284040,32.68830381,239.52,239.46,4.176]
[1731952284249,32.68830381,239.52,239.47,0.5]
[1731952284624,32.68830381,239.52,239.46,4.176]
[1731952284821,32.68830381,239.5,239.46,4.176]
[1731952286935,32.68830381,239.48,239.46,4.176]
[1731952287525,0.09367462,239.46,239.39,4.1772]
[1731952287828,0.25098,239.44,239.39,4.1772]
[1731952288838,0.3521776,239.44,239.39,4.1772]
[1731952292150,0.2266876,239.44,239.39,4.1772]
[1731952295935,0.12549,239.4,239.39,4.1772]
[1731952296438,32.68830381,239.41,239.39,4.1772]
[1731952297850,32.68830381,239.41,239.35,0.5]
[1731952298048,0.12549,239.42,239.35,33.18830381]
[1731952298247,20.10642771,239.43,239.35,20.60642771]
[1731952300051,20.3521776,239.44,239.37,20.10642771]
[1731952300259,40.45860531,239.44,239.37,20.10642771]
[1731952300556,40.45860531,239.44,239.35,20.60642771]
[1731952301055,20.10642771,239.42,239.33,20.60642771]
[1731952301750,20.10642771,239.4,239.34,4.1781]
[1731952302257,0.3521776,239.44,239.38,20.10642771]
[1731952302754,0.3521776,239.44,239.36,20.10642771]
[1731952303834,20.10642771,239.41,239.37,4.1776]
[1731952304844,0.3521776,239.44,239.37,4.1776]
[1731952304845,0.25098,239.42,239.37,4.1776]
[1731952305641,20.10642771,239.41,239.37,4.1776]
[1731952306356,0.25098,239.42,239.37,4.1776]
[1731952306539,20.35740771,239.43,239.37,4.1776]
[1731952307060,20.10642771,239.41,239.37,4.1776]
[1731952309643,20.10642771,239.4,239.37,4.1776]
[1731952309844,20.10642771,239.41,239.37,4.1776]
[1731952310964,20.10642771,239.39,239.37,4.1776]
[1731952311264,20.10642771,239.41,239.37,4.1776]
[1731952311656,20.10642771,239.42,239.37,4.1776]
[1731952312467,20.10642771,239.41,239.37,4.1776]
[1731952312650,20.10642771,239.4,239.37,4.1776]
[1731952312960,0.25098,239.43,239.37,4.1776]
[1731952312961,20.10642771,239.41,239.37,4.1776]
[1731952314247,20.10642771,239.41,239.34,20.10642771]
[1731952314445,0.12549,239.4,239.33,0.5]
[1731952316848,0.12549,239.42,239.34,20.10642771]
[1731952317058,0.12549,239.42,239.33,0.5]
[1731952317059,20.10642771,239.41,239.33,0.5]
[1731952318160,20.10642771,239.39,239.33,0.5]
[1731952318372,12.57066294,239.39,239.31,12.57066294]
[1731952319082,12.67186054,239.39,239.31,12.57066294]
[1731952319247,0.1011976,239.39,239.31,12.57066294]
[1731952319575,0.1011976,239.39,239.34,12.57066294]
[1731952321138,0.1011976,239.39,239.33,0.5]
[1731952321742,0.1011976,239.39,239.34,12.57066294]
[1731952323244,0.12549,239.37,239.3,12.57066294]
[1731952324081,0.1011976,239.39,239.32,12.57066294]
[1731952324255,0.1011976,239.39,239.35,12.57066294]
[1731952324451,0.1011976,239.39,239.38,12.57066294]
[1731952324760,0.1011976,239.39,239.38,13.07066294]
[1731952327865,0.1011976,239.39,239.28,0.5]
[1731952328073,0.1011976,239.39,239.33,12.57066294]
[1731952330881,0.1011976,239.39,239.31,12.57066294]
[1731952331084,0.1011976,239.39,239.33,12.57066294]
[1731952331261,0.1011976,239.39,239.38,12.57066294]
[1731952331465,9.76e-05,239.39,239.38,36.44122156]
[1731952331777,9.76e-05,239.39,239.38,42.64393621]
[1731952331990,9.76e-05,239.39,239.38,36.69220156]
[1731952332362,9.76e-05,239.39,239.38,36.44122156]
[1731952334076,9.76e-05,239.39,239.38,12.57066294]
[1731952335868,9.76e-05,239.39,239.36,12.57066294]
[1731952336488,9.76e-05,239.39,239.38,12.57066294]
[1731952338383,9.76e-05,239.39,239.38,36.44122156]
[1731952341577,9.76e-05,239.39,239.38,36.34754694]
[1731952341789,9.76e-05,239.39,239.38,12.57066294]
[1731952348905,9.76e-05,239.39,239.34,12.57066294]
[1731952349114,9.76e-05,239.39,239.32,12.57066294]
[1731952351681,12.57066294,239.38,239.32,12.57066294]
[1731952352304,12.57066294,239.38,239.3,12.57066294]
[1731952352689,9.76e-05,239.39,239.34,12.57066294]
[1731952352885,9.76e-05,239.39,239.32,12.57066294]
[1731952353100,12.57066294,239.38,239.3,12.57066294]
[1731952353698,9.76e-05,239.39,239.24,1.96274686]
[1731952353699,12.57076054,239.39,239.31,12.57066294]
[1731952354385,9.76e-05,239.39,239.33,12.57066294]
[1731952354588,9.76e-05,239.39,239.37,12.57066294]
[1731952355403,9.76e-05,239.39,239.35,12.57066294]
[1731952356303,9.76e-05,239.39,239.31,0.5]
[1731952356600,9.76e-05,239.39,239.32,12.57066294]
[1731952356976,9.76e-05,239.39,239.37,12.57066294]
[1731952357191,9.76e-05,239.39,239.38,12.57066294]
[1731952357393,9.76e-05,239.39,239.38,36.34754694]
[1731952358500,9.76e-05,239.39,239.38,36.69220156]
[1731952358685,9.76e-05,239.39,239.38,49.7628645]
[1731952359301,9.76e-05,239.39,239.38,37.19220156]
[1731952360379,9.76e-05,239.39,239.38,36.44122156]
[1731952360590,9.76e-05,239.39,239.38,56.56671156]
[1731952360905,9.76e-05,239.39,239.38,56.44122156]
[1731952361404,9.76e-05,239.39,239.38,32.57066294]
[1731952362078,9.76e-05,239.39,239.38,32.66433756]
[1731952362688,9.76e-05,239.39,239.38,36.34754694]
[1731952365083,9.76e-05,239.39,239.38,36.44122156]
[1731952366211,9.76e-05,239.39,239.38,36.69220156]
[1731952367108,9.76e-05,239.39,239.38,0.09367462]
[1731952367404,9.76e-05,239.39,239.38,36.44122156]
[1731952367790,9.76e-05,239.39,239.38,36.34754694]
[1731952367987,9.76e-05,239.39,239.38,12.57066294]
[1731952370004,9.76e-05,239.39,239.38,36.34754694]
[1731952371812,9.76e-05,239.39,239.38,12.57066294]
[1731952372745,9.76e-05,239.39,239.34,12.57066294]
[1731952374133,9.76e-05,239.39,239.32,12.57066294]
[1731952375127,9.76e-05,239.39,239.3,0.5]
[1731952375128,9.76e-05,239.39,239.36,12.57066294]
[1731952377931,9.76e-05,239.39,239.38,12.57066294]
[1731952378736,9.76e-05,239.39,239.38,36.34754694]
[1731952381202,9.76e-05,239.39,239.38,57.19220156]
[1731952382008,9.76e-05,239.39,239.38,56.69220156]
[1731952383114,9.76e-05,239.39,239.38,57.19220156]
[1731952383315,9.76e-05,239.39,239.38,58.59386481]
[1731952383541,9.76e-05,239.39,239.38,36.69220156]
[1731952384617,9.76e-05,239.39,239.38,36.34754694]
[1731952385019,9.76e-05,239.39,239.36,12.57066294]
[1731952385429,9.76e-05,239.39,239.32,0.5]
[1731952385430,9.76e-05,239.39,239.34,12.57066294]
[1731952387434,9.76e-05,239.39,239.3,0.5]
[1731952387435,9.76e-05,239.39,239.38,12.57066294]
[1731952388730,9.76e-05,239.39,239.38,36.34754694]
[1731952389337,9.76e-05,239.39,239.38,56.34754694]
[1731952389546,0.0470457,239.52,239.39,44.12153862]
[1731952389723,0.0470457,239.52,239.47,12.57066294]
[1731952389915,0.0470457,239.52,239.49,12.57066294]
[1731952393643,0.0470457,239.52,239.47,12.57066294]
[1731952394014,0.0470457,239.52,239.45,12.57066294]
[1731952394629,0.0470457,239.52,239.42,0.5]
[1731952394830,0.0470457,239.52,239.47,12.57066294]
[1731952396042,0.0470457,239.52,239.45,12.57066294]
[1731952396451,0.0470457,239.52,239.47,12.57066294]
[1731952400639,12.61770864,239.52,239.43,12.57066294]
[1731952400847,12.57066294,239.5,239.4,12.57066294]
[1731952401035,12.61770864,239.52,239.44,12.57066294]
[1731952402326,0.0470457,239.52,239.48,12.57066294]
[1731952403023,0.0470457,239.52,239.5,12.57066294]
[1731952403343,0.0470457,239.52,239.51,20.0]
[1731952404648,0.0470457,239.52,239.51,43.776884]
[1731952404825,0.0470457,239.52,239.51,20.0]
[1731952407933,0.0470457,239.52,239.51,20.09367462]
[1731952408130,4.57e-05,239.52,239.51,43.99604862]
[1731952412350,4.57e-05,239.52,239.51,52.02596747]
[1731952414342,158.4,239.71,239.52,24.12153862]
[1731952414556,21.2726199,239.63,239.57,8.02991885]
[1731952414760,21.2726199,239.63,239.58,20.0]
[1731952416456,33.81589706,239.63,239.55,32.54327716]
[1731952420756,33.81589706,239.63,239.49,2.41029775]
[1731952420757,12.54327716,239.61,239.54,20.0]
[1731952424540,33.81589706,239.63,239.55,12.54327716]
[1731952424762,33.81589706,239.63,239.56,20.0]
[1731952424952,12.54327716,239.61,239.56,20.0]
[1731952425642,12.54327716,239.61,239.54,20.0]
[1731952426246,21.2726199,239.63,239.54,20.0]
[1731952426447,33.81589706,239.63,239.55,12.54327716]